bitfinex/quotes_ETHUSD_20241216
["timestamp","ask_amount","ask_price","bid_price","bid_amount"]
[1734345711621,1.04733518,3941.8,3941.0,0.8082]
[1734345711861,2.18903078,3941.8,3941.0,0.8082]
[1734345712164,3.41259231,3941.7,3941.0,0.8082]
[1734345712368,2.53698,3941.7,3941.0,0.8082]
[1734345712522,0.55,3941.5,3941.0,0.8082]
[1734345712723,0.55,3941.6,3941.0,0.8082]
[1734345712954,0.55,3941.8,3941.0,0.8082]
[1734345713157,0.55,3941.9,3941.0,0.8082]
[1734345713359,2.73975757,3941.9,3941.0,1.2072089]
[1734345713667,3.58416518,3942.0,3941.0,1.2072089]
[1734345713668,0.55,3941.7,3941.0,1.2072089]
[1734345714158,0.55,3941.9,3941.0,1.2072089]
[1734345714360,0.55,3941.7,3941.0,1.2072089]
[1734345714563,0.55,3941.7,3941.0,0.8082]
[1734345714714,0.55,3941.8,3941.0,0.8082]
[1734345714914,1.04733518,3941.9,3941.0,0.8082]
[1734345714915,0.5178247,3941.6,3941.0,0.8082]
[1734345715119,1.04733518,3941.9,3941.0,0.8082]
[1734345715330,3.23713738,3941.9,3941.0,0.8082]
[1734345715538,0.87592088,3941.8,3941.2,1.01491]
[1734345715765,1.04733518,3941.9,3941.1,0.2975099]
[1734345716168,3.23706171,3941.9,3941.1,0.2975099]
[1734345716957,0.55,3941.8,3941.1,0.2975099]
[1734345717267,0.87600952,3941.7,3941.1,0.2975099]
[1734345717433,0.55,3941.6,3941.1,0.2975099]
[1734345717634,0.55,3941.8,3941.1,0.2975099]
[1734345717869,0.55,3941.6,3941.1,0.2975099]
[1734345718065,0.55,3941.8,3941.1,0.2975099]
[1734345718267,0.55,3941.6,3941.1,0.2975099]
[1734345718454,0.55,3941.8,3941.1,0.2975099]
[1734345718657,0.47430917,3941.6,3941.1,0.2975099]
[1734345719086,1.04733518,3941.8,3941.1,0.2975099]
[1734345719382,5.77451643,3941.8,3941.0,0.8082]
[1734345719543,2.19027125,3941.7,3941.0,0.8082]
[1734345719956,0.8761085,3941.6,3941.0,0.8082]
[1734345720156,5.77464438,3941.6,3941.0,0.8082]
[1734345720344,0.8761085,3941.5,3941.0,0.8082]
[1734345720538,1.04733518,3941.7,3941.0,0.8082]
[1734345720835,0.55,3941.5,3941.0,0.8082]
[1734345721344,0.87613688,3941.4,3941.0,0.8082]
[1734345721541,0.55,3941.3,3941.0,0.8082]
[1734345721765,0.55,3941.4,3941.0,0.8082]
[1734345721966,0.55,3941.2,3941.0,0.8082]
[1734345722167,1.59733518,3941.4,3941.0,0.8082]
[1734345722367,0.55,3941.2,3941.0,0.8082]
[1734345722780,1.59733518,3941.4,3941.0,0.8082]
[1734345722981,0.55,3941.2,3941.0,0.8082]
[1734345723298,1.59733518,3941.4,3941.0,0.8082]
[1734345723443,0.55,3941.2,3941.0,0.8082]
[1734345724005,1.59733518,3941.4,3941.0,0.8082]
[1734345724151,0.55,3941.2,3941.0,0.8082]
[1734345724693,0.55,3941.4,3941.0,0.8082]
[1734345724903,0.55,3941.2,3941.0,0.8082]
[1734345725077,0.55,3941.4,3941.0,0.8082]
[1734345725403,0.55,3941.2,3941.0,0.8082]
[1734345725563,0.55,3941.4,3941.0,0.8082]
[1734345725883,0.55,3941.2,3941.0,0.8082]
[1734345726058,0.55,3941.4,3941.0,0.8082]
[1734345726254,0.55,3941.2,3941.0,0.8082]
[1734345726698,0.55,3941.5,3941.0,0.8082]
[1734345726849,0.87620301,3941.4,3941.0,0.8082]
[1734345727049,0.55,3941.3,3941.0,0.8082]
[1734345727445,3.08713,3941.5,3941.0,0.8082]
[1734345727639,0.55,3941.3,3941.0,0.8082]
[1734345728095,0.55,3941.3,3940.9,2.166899]
[1734345728304,0.55,3941.4,3940.9,2.166899]
[1734345729147,0.55,3941.2,3940.9,2.166899]
[1734345729561,0.55,3941.4,3940.9,2.166899]
[1734345729759,0.55,3941.2,3940.9,2.166899]
[1734345730018,0.55,3941.4,3940.9,2.166899]
[1734345730191,0.55,3941.2,3940.9,2.166899]
[1734345730555,0.55,3941.4,3940.9,2.166899]
[1734345730751,0.55,3941.2,3940.9,2.166899]
[1734345731079,0.55,3941.4,3940.9,2.166899]
[1734345731321,0.55,3941.2,3940.9,2.166899]
[1734345731462,3.0872,3941.4,3940.9,2.166899]
[1734345731663,0.55,3941.2,3940.7,0.8187]
[1734345731884,2.53749,3940.9,3940.4,0.7818]
[1734345732090,0.55,3940.8,3940.4,0.7818]
[1734345732961,0.55,3941.1,3940.4,0.7818]
[1734345733154,0.8765066,3941.0,3940.5,2.166899]
[1734345733349,0.55,3940.9,3940.5,2.4617689]
[1734345733553,1.57100278,3941.4,3940.9,0.8291]
[1734345733554,0.55,3941.3,3940.9,0.8291]
[1734345733752,1.04733518,3941.6,3941.3,0.8291]
[1734345734051,1.04733518,3941.8,3941.3,0.8291]
[1734345734252,3.23933348,3941.7,3941.3,0.8291]
[1734345734490,2.1919983,3941.6,3941.3,0.8291]
[1734345734653,1.04733518,3941.7,3941.3,0.8291]
[1734345735226,1.92426113,3941.7,3941.3,0.8291]
[1734345735422,1.04733518,3941.8,3941.6,2.166899]
[1734345735641,1.04733518,3942.2,3941.7,0.7544]
[1734345735928,1.04733518,3942.3,3941.7,0.7544]
[1734345736444,1.92446518,3942.3,3941.7,0.7544]
[1734345736582,0.87713,3942.2,3941.7,1.1480159]
[1734345736784,1.04733518,3942.3,3941.7,1.1480159]
[1734345737024,0.55,3942.2,3941.7,1.1480159]
[1734345738627,0.55,3942.3,3941.7,1.1480159]
[1734345738831,0.55,3942.1,3941.7,1.1480159]
[1734345738997,1.04733518,3942.4,3942.1,0.8289]
[1734345739211,1.04733518,3942.6,3942.1,0.8289]
[1734345739533,1.04733518,3942.7,3942.1,0.8289]
[1734345740483,0.55,3942.7,3942.1,0.8289]
[1734345740682,0.55,3942.7,3942.2,0.2995799]
[1734345740914,0.87692434,3942.6,3942.2,0.2995799]
[1734345741101,0.55,3942.5,3942.2,0.2995799]
[1734345741584,0.55,3942.6,3942.2,0.2995799]
[1734345741898,0.87683461,3942.5,3942.1,0.8289]
[1734345742285,0.55,3942.4,3942.1,0.8289]
[1734345742485,0.55,3942.6,3942.1,0.8289]
[1734345742899,0.55,3942.6,3941.7,0.8172]
[1734345742900,0.55,3942.4,3941.7,0.8172]
[1734345744044,0.87656663,3942.3,3941.7,0.8172]
[1734345744226,3.08654,3942.4,3941.7,1.1156099]
[1734345744654,0.55,3942.2,3941.7,1.1156099]
[1734345745003,0.55,3942.3,3941.7,1.1156099]
[1734345745204,0.55,3942.3,3941.7,0.8172]
[1734345745705,0.55,3942.1,3941.7,0.8172]
[1734345745906,0.55,3942.3,3941.7,0.8172]
[1734345746107,0.55,3942.1,3941.7,0.8172]
[1734345746440,0.55,3942.3,3941.7,0.8172]
[1734345748355,3.08665,3942.3,3941.7,0.8172]
[1734345748502,0.55,3942.1,3941.7,0.8172]
[1734345749216,3.9973937,3942.2,3941.7,0.8172]
[1734345749217,0.55,3942.2,3941.7,0.8172]
[1734345749630,1.04733518,3942.3,3941.7,0.8172]
[1734345749631,0.55,3942.3,3941.7,0.8172]
[1734345749809,0.55,3942.4,3941.7,1.57828]
[1734345750021,0.55,3942.5,3941.9,0.7829]
[1734345750259,0.55,3942.7,3941.9,0.7829]
[1734345750765,0.55,3942.6,3941.9,0.7829]
[1734345750967,0.55,3942.5,3941.9,0.7829]
[1734345753240,0.55,3942.5,3941.2,2.166899]
[1734345753241,0.55,3942.3,3941.2,2.166899]
[1734345753549,0.55,3942.3,3941.3,0.7676]
[1734345753550,0.55,3942.1,3941.3,0.7676]
[1734345753753,0.55,3942.3,3941.3,0.7676]
[1734345753959,1.04733518,3942.4,3941.3,0.7676]
[1734345753960,3.08687,3941.9,3941.3,0.7676]
[1734345754974,0.858687,3941.9,3941.3,0.7676]
[1734345755172,0.858687,3941.9,3941.0,0.98002716]
[1734345755173,0.55,3941.7,3941.0,0.98002716]
[1734345755372,0.55,3941.2,3941.0,0.98002716]
[1734345756644,0.55,3941.5,3941.0,0.98002716]
[1734345756846,3.08736,3941.1,3940.6,0.7676]
[1734345757060,0.55,3940.9,3940.6,0.7676]
[1734345757966,3.08736,3941.1,3940.6,0.7676]
[1734345758262,0.55,3940.9,3940.6,0.7676]
[1734345758462,0.55,3940.8,3940.0,2.56300743]
[1734345758658,0.55,3940.8,3940.1,0.7676]
[1734345760156,0.55,3941.0,3940.1,0.7676]
[1734345761599,0.55,3941.1,3940.1,0.7676]
[1734345761748,3.08737,3941.1,3940.1,0.7676]
[1734345762455,3.08737,3941.1,3940.1,1.10066074]
[1734345763352,0.55,3941.3,3940.5,0.803]
[1734345763652,3.08719,3941.4,3940.5,0.803]
[1734345763877,0.55,3941.2,3940.5,0.803]
[1734345766553,0.7955,3941.5,3940.8,2.166899]
[1734345766757,1.04733518,3941.8,3940.9,0.7587]
[1734345766951,1.57100278,3942.0,3940.9,0.7587]
[1734345766952,1.04733518,3942.0,3940.9,0.7587]
[1734345767277,2.1895836,3942.0,3940.9,0.7587]
[1734345767486,1.85333518,3942.1,3941.0,0.3940609]
[1734345767652,4.72640718,3942.0,3941.0,0.3940609]
[1734345767851,3.41273087,3941.9,3941.0,0.3940609]
[1734345768045,2.53695,3941.8,3941.0,0.3940609]
[1734345768375,2.53695,3941.8,3940.9,0.7587]
[1734345769289,1.04733518,3942.0,3940.9,0.7587]
[1734345769489,0.55,3941.9,3940.9,0.7587]
[1734345769693,0.87619098,3941.8,3940.9,0.7587]
[1734345773390,0.55,3942.0,3940.9,1.35458001]
[1734345773593,0.87630731,3941.9,3941.7,0.7939]
[1734345773795,1.04733518,3942.4,3941.7,0.7939]
[1734345774089,3.23834506,3942.4,3941.7,0.7939]
[1734345774288,0.87640395,3942.3,3941.7,0.7939]
[1734345774487,0.87640395,3942.3,3941.3,0.8208]
[1734345774488,1.15190267,3942.2,3941.3,0.8208]
[1734345774721,3.41305943,3942.1,3941.3,0.8208]
[1734345774893,2.53672,3942.1,3941.3,0.8208]
[1734345775301,0.55,3942.0,3941.3,0.8208]
[1734345776733,1.3457,3942.1,3941.3,0.8208]
[1734345776935,3.08693,3941.8,3941.0,0.7961]
[1734345778436,2.53706,3941.6,3941.0,0.7961]
[1734345778645,5.27806698,3941.5,3941.0,0.7961]
[1734345778933,0.87634913,3941.4,3941.0,0.7961]
[1734345779108,0.50108443,3941.3,3941.0,0.7961]
[1734345780006,0.50108443,3941.3,3940.5,0.7961]
[1734345780218,3.89416,3941.5,3940.5,0.7961]
[1734345780793,2.53731,3941.2,3940.5,0.7961]
[1734345781837,2.53738,3941.1,3940.5,0.7961]
[1734345783036,0.55,3941.0,3940.5,0.7961]
[1734345783237,2.53756,3940.8,3940.1,0.7611]
[1734345784659,0.8159,3940.9,3940.1,0.7611]
[1734345784818,2.53765,3940.7,3940.1,0.7611]
[1734345785661,2.5377,3940.6,3940.1,0.7611]
[1734345785967,3.08775,3940.5,3940.1,0.7611]
[1734345787059,2.53782,3940.4,3940.1,0.7611]
[1734345789865,2.53794,3940.2,3940.1,0.7611]
[1734345790170,0.8159,3940.9,3940.0,0.39610843]
[1734345790171,0.55,3940.3,3940.0,0.39610843]
[1734345790517,3.08774,3940.5,3940.0,0.39610843]
[1734345790719,3.088,3940.1,3940.0,0.39610843]
[1734345791065,2.53827,3939.7,3939.2,1.15147326]
[1734345791649,2.53836,3939.6,3939.2,1.15147326]
[1734345792006,2.53852,3939.3,3939.2,0.39627326]
[1734345792144,2.53852,3939.3,3938.9,0.7552]
[1734345792345,0.55,3939.5,3938.9,0.7552]
[1734345792547,2.53858,3939.2,3938.9,0.7552]
[1734345792789,0.55,3939.5,3938.9,0.7552]
[1734345793087,3.08842,3939.5,3938.9,0.7552]
[1734345793290,2.53852,3939.3,3938.9,0.7552]
[1734345793890,0.55,3939.5,3938.9,0.7552]
[1734345793891,2.53858,3939.2,3938.9,0.7552]
[1734345795986,2.53858,3939.2,3938.7,0.39633005]
[1734345796196,2.53877,3939.0,3938.7,0.39633005]
[1734345797581,2.53846,3939.4,3938.7,0.39633005]
[1734345797582,2.53879,3938.9,3938.7,0.39633005]
[1734345799695,0.55,3939.1,3938.7,0.39633005]
[1734345799853,2.53884,3938.8,3938.7,0.39633005]
[1734345800053,2.53884,3938.8,3938.5,0.7552]
[1734345801157,2.53887,3938.8,3938.5,0.7552]
[1734345801367,2.53887,3938.8,3938.1,0.7846]
[1734345802596,2.53881,3938.9,3938.1,0.7846]
[1734345802779,2.53886,3938.8,3938.1,0.7846]
[1734345803172,3.472796,3939.1,3938.3,0.798]
[1734345803369,2.53873,3939.0,3938.3,0.798]
[1734345803575,2.53878,3938.9,3938.3,0.798]
[1734345804155,2.53885,3938.8,3938.3,0.798]
[1734345805810,0.55,3938.7,3938.0,1.19878676]
[1734345805953,0.55,3938.5,3937.0,2.166899]
[1734345806311,0.55,3938.0,3937.5,0.39641401]
[1734345806520,3.08936,3938.0,3937.5,0.39641401]
[1734345807220,0.858936,3938.0,3937.5,0.39641401]
[1734345808290,2.53949,3937.8,3937.1,0.75635745]
[1734345808629,0.55,3937.7,3937.2,0.39646898]
[1734345808918,0.55,3937.6,3937.2,0.39646898]
[1734345809332,3.08981,3937.3,3936.8,0.8023]
[1734345809533,0.936891,3937.2,3936.2,2.41246037]
[1734345809827,2.54003,3937.0,3936.4,0.3964881]
[1734345809971,0.55,3937.2,3936.4,0.3964881]
[1734345810176,2.54018,3936.8,3936.3,0.8023]
[1734345810433,0.55,3937.0,3935.9,0.8023]
[1734345810581,0.55,3936.7,3935.6,0.8023]
[1734345811327,0.55,3936.1,3935.6,0.8023]
[1734345811509,2.54053,3936.2,3935.6,0.8023]
[1734345811510,0.55,3936.2,3935.6,0.8023]
[1734345812038,0.55,3936.4,3935.6,0.8023]
[1734345812331,0.55,3936.2,3935.7,0.76224]
[1734345812474,0.55,3936.8,3935.7,1.0504962]
[1734345812805,2.54027,3936.6,3935.6,0.8023]
[1734345813007,0.55,3936.5,3935.6,0.8023]
[1734345813382,0.55,3936.5,3935.4,0.39658488]
[1734345813383,0.55,3936.4,3935.5,0.7679]
[1734345813584,0.68591,3936.4,3935.5,0.7679]
[1734345816092,3.22631,3936.4,3935.5,0.7679]
[1734345816636,2.54047,3936.3,3935.5,0.7679]
[1734345816786,0.55,3936.2,3935.5,0.7679]
[1734345816987,0.55,3936.0,3935.5,0.7679]
[1734345817251,0.55,3935.8,3935.5,0.7679]
[1734345819594,0.55,3936.1,3935.5,0.7679]
[1734345820431,0.55,3936.3,3935.5,0.7679]
[1734345821339,3.09045,3936.3,3935.5,0.7679]
[1734345821510,0.55,3936.1,3935.5,0.7679]
[1734345822558,0.55,3935.9,3935.2,0.7843]
[1734345823196,3.09073,3935.9,3935.2,0.7843]
[1734345824737,3.09073,3935.9,3935.0,0.8223]
[1734345824950,0.55,3935.7,3935.0,0.8223]
[1734345825400,0.55,3935.9,3935.0,0.8223]
[1734345828181,0.55,3935.7,3935.0,0.8223]
[1734345828364,2.54083,3935.8,3935.0,0.8223]
[1734345828573,0.13591,3936.4,3934.6,0.7577]
[1734345828574,0.55,3935.3,3934.6,0.7577]
[1734345828757,0.55,3935.0,3934.2,0.7577]
[1734345830069,3.09129,3935.0,3934.2,0.7577]
[1734345830470,0.55,3934.7,3933.9,0.8075]
[1734345830776,0.55,3934.5,3933.9,0.8075]
[1734345830971,0.55,3934.3,3933.9,0.8075]
[1734345834973,0.55,3934.6,3933.9,0.8075]
[1734345835371,1.3039,3934.4,3933.6,0.7523]
[1734345836096,0.55,3934.0,3933.3,0.7523]
[1734345836542,0.55,3934.1,3933.0,0.7846]
[1734345836717,3.09215,3933.7,3933.0,0.7846]
[1734345837433,0.55,3933.9,3933.0,0.7846]
[1734345838131,3.09206,3933.9,3933.0,0.7846]
[1734345838434,2.54208,3933.8,3933.0,0.7846]
[1734345839430,2.54214,3933.7,3933.0,0.7846]
[1734345839636,0.307014,3933.6,3933.0,0.7846]
[1734345839785,0.307014,3933.6,3932.7,0.7846]
[1734345839786,2.5424,3933.3,3932.7,0.7846]
[1734345840143,0.307014,3933.6,3932.4,0.7846]
[1734345840144,2.54246,3933.2,3932.4,0.7846]
[1734345840435,2.54229,3933.5,3932.4,0.7846]
[1734345840737,0.7945,3933.7,3932.4,0.7846]
[1734345840738,0.55,3933.3,3932.4,0.7846]
[1734345841433,3.09223,3933.6,3932.4,0.7846]
[1734345841788,2.54232,3933.5,3932.4,0.7846]
[1734345841988,0.55,3933.6,3932.4,0.7846]
[1734345841989,0.55,3933.3,3932.4,0.7846]
[1734345842188,0.55,3933.1,3932.4,0.7846]
[1734345842820,0.55,3933.3,3932.4,0.7846]
[1734345843423,0.55,3933.3,3932.7,2.41246037]
[1734345843593,0.55,3933.8,3932.8,0.8065]
[1734345843786,0.55,3933.6,3932.8,0.8065]
[1734345844272,3.36398,3934.3,3933.2,0.8065]
[1734345845058,2.54156,3934.6,3933.5,2.41246037]
[1734345845375,2.54156,3934.6,3933.6,0.8139]
[1734345846111,0.55,3934.6,3933.6,0.8139]
[1734345846311,0.55,3934.4,3933.6,0.8139]
[1734345847219,0.55,3934.6,3933.6,0.8139]
[1734345847424,0.55,3934.6,3933.6,1.57655]
[1734345847759,0.7552,3935.0,3933.6,1.57655]
[1734345847760,2.54142,3934.8,3933.6,1.57655]
[1734345847993,0.55,3934.6,3933.6,1.57655]
[1734345848130,0.55,3934.6,3933.6,0.8139]
[1734345848330,0.55,3934.5,3933.6,0.8139]
[1734345849670,0.55,3934.5,3933.6,1.57654]
[1734345849816,0.7595,3935.3,3934.3,2.41246037]
[1734345850020,0.7595,3935.3,3934.4,0.789]
[1734345850275,2.54109,3935.4,3934.4,0.789]
[1734345850455,0.7595,3935.6,3934.4,0.789]
[1734345850624,2.54124,3935.1,3934.4,0.789]
[1734345851137,0.7595,3935.6,3934.4,0.789]
[1734345851334,0.55,3935.2,3934.4,0.789]
[1734345851536,0.3691773,3935.5,3934.4,0.789]
[1734345851537,0.55,3935.4,3934.4,0.789]
[1734345851761,0.55,3935.2,3934.4,0.789]
[1734345852550,0.55,3935.1,3934.4,0.789]
[1734345853457,0.55,3935.2,3934.4,0.789]
[1734345853774,0.55,3935.0,3934.4,0.789]
[1734345854079,2.54104,3935.4,3934.4,0.789]
[1734345854080,0.55,3935.3,3934.4,0.789]
[1734345854730,3.0911,3935.3,3934.4,0.789]
[1734345855131,0.55,3935.3,3934.7,2.41246037]
[1734345855334,2.54077,3935.8,3934.7,2.41246037]
[1734345855335,2.54077,3935.8,3934.8,0.7533]
[1734345855755,0.8234,3936.0,3934.8,0.7533]
[1734345855962,3.13591,3936.4,3934.8,0.7533]
[1734345855963,1.18324518,3936.4,3935.2,0.7533]
[1734345856159,0.13591,3936.4,3935.6,0.7968]
[1734345857380,2.67631,3936.4,3935.6,0.7968]
[1734345857733,0.13591,3936.4,3935.6,0.7968]
[1734345857936,2.54025,3936.7,3935.6,0.7968]
[1734345858238,0.55,3936.5,3935.6,0.7968]
[1734345858587,0.55,3936.8,3935.7,0.7968]
[1734345858894,2.54012,3936.9,3936.0,0.7968]
[1734345859042,2.794132,3936.9,3936.0,0.7968]
[1734345859248,3.0,3937.4,3936.3,2.41246037]
[1734345859249,3.58726518,3937.2,3936.3,2.41246037]
[1734345859446,2.53993,3937.2,3936.4,0.7968]
[1734345860863,1.85543518,3937.6,3936.4,0.7968]
[1734345861060,2.54012,3936.9,3936.4,0.7968]
[1734345861285,2.53974,3937.4,3936.0,3.0]
[1734345861286,2.54016,3936.8,3936.0,0.8113]
[1734345861444,2.794176,3936.8,3936.0,0.8113]
[1734345861645,0.55,3936.7,3936.0,0.8113]
[1734345862942,2.53995,3937.1,3936.4,0.7956]
[1734345863278,3.34775,3937.6,3936.4,0.7956]
[1734345863279,0.55,3937.0,3936.4,0.7956]
[1734345863479,0.55,3937.0,3936.5,2.41323151]
[1734345863812,3.0,3937.7,3936.5,2.41323151]
[1734345863813,2.53955,3937.7,3936.6,0.7901]
[1734345864096,0.253955,3937.6,3936.6,0.7901]
[1734345864387,0.253955,3937.6,3936.6,0.76206]
[1734345864541,2.53946,3937.9,3936.7,0.7901]
[1734345864741,2.5395,3937.8,3936.7,0.7901]
[1734345864989,2.5395,3937.8,3936.9,2.41323151]
[1734345865294,2.53958,3937.7,3936.9,2.41323151]
[1734345865489,0.55,3937.6,3936.9,2.41323151]
[1734345866349,0.55,3937.9,3936.9,2.41323151]
[1734345866547,0.55,3937.5,3936.9,2.41323151]
[1734345866811,0.55,3937.5,3937.0,0.7509]
[1734345867299,0.55,3937.8,3937.0,0.7509]
[1734345867466,0.55,3937.6,3937.0,0.7509]
[1734345868553,2.53923,3938.2,3937.4,0.7565]
[1734345868754,2.5391,3938.4,3937.4,0.7565]
[1734345869350,2.5391,3938.4,3937.4,3.16870044]
[1734345869555,2.79308,3938.3,3937.4,3.16870044]
[1734345870546,0.25391,3938.3,3937.4,3.16870044]
[1734345870694,0.55,3937.9,3937.4,0.7565]
[1734345871066,0.55,3937.9,3937.0,2.41220044]
[1734345871067,0.55,3937.6,3937.1,0.7754]
[1734345871382,0.55,3937.9,3937.1,0.7754]
[1734345871583,0.55,3937.5,3937.1,0.7754]
[1734345873062,3.0897,3937.5,3937.1,0.7754]
[1734345874316,0.55,3937.7,3937.1,0.7754]
[1734345874520,0.55,3937.5,3936.4,0.8243]
[1734345874713,0.55,3937.3,3936.4,0.8243]
[1734345875301,0.55,3937.1,3936.4,0.8243]
[1734345875547,0.55,3937.3,3936.6,2.41220044]
[1734345875680,3.08981,3937.3,3936.6,2.41220044]
[1734345875880,0.55,3937.3,3936.6,2.41220044]
[1734345876079,0.55,3937.0,3936.6,2.41220044]
[1734345878448,0.55,3937.3,3936.7,0.8124]
[1734345880150,3.08962,3937.6,3936.7,1.13486004]
[1734345880315,3.08962,3937.6,3936.8,0.8008]
[1734345880662,2.53947,3937.9,3936.8,0.8008]
[1734345880844,2.53949,3937.8,3936.8,0.8008]
[1734345880997,2.53949,3937.8,3936.8,1.25595805]
[1734345881403,2.53933,3938.1,3937.1,0.8008]
[1734345881648,2.53922,3938.3,3937.1,0.8008]
[1734345881854,2.53926,3938.2,3937.2,0.7614]
[1734345882050,2.53926,3938.2,3937.3,0.8245]
[1734345882403,2.53911,3938.4,3937.4,2.41220044]
[1734345882620,2.53897,3938.6,3937.5,0.8245]
[1734345882838,2.53897,3938.6,3937.8,2.41220044]
[1734345883039,2.53897,3938.6,3937.9,0.809]
[1734345883412,0.49713968,3938.9,3937.9,0.809]
[1734345883614,2.66708397,3938.8,3937.9,0.809]
[1734345884231,0.55,3938.7,3937.9,0.809]
[1734345886592,0.55,3938.9,3937.9,0.809]
[1734345886891,2.53892,3938.7,3937.9,0.809]
[1734345887246,0.55,3938.6,3937.9,0.809]
[1734345887471,0.55,3938.6,3937.9,1.23270404]
[1734345889095,3.08878,3938.9,3938.2,2.41220044]
[1734345889303,3.08878,3938.9,3938.3,0.7754]
[1734345889644,0.55,3939.0,3938.3,0.7754]
[1734345892703,0.55,3938.6,3938.3,0.7754]
[1734345892904,0.55,3938.5,3938.3,0.7754]
[1734345894389,0.55,3938.7,3937.9,0.8093]
[1734345894593,0.55,3938.5,3937.9,0.8093]
[1734345894922,0.55,3938.7,3937.9,0.8093]
[1734345895219,0.55,3938.5,3937.9,0.8093]
[1734345895384,2.53914,3938.4,3937.9,0.8093]
[1734345895589,0.55,3938.3,3937.9,0.8093]
[1734345895811,3.08917,3938.3,3937.9,0.8093]
[1734345898820,0.55,3938.2,3937.9,0.8093]
[1734345898974,0.55,3938.1,3937.9,0.8093]
[1734345899399,0.55,3938.4,3937.9,0.8093]
[1734345899999,0.55,3938.3,3937.9,0.8093]
[1734345901130,0.55,3938.8,3937.9,0.8093]
[1734345901330,1.09220315,3938.8,3937.9,0.8093]
[1734345901572,2.5391,3938.4,3937.9,0.8093]
[1734345902072,0.55,3938.6,3937.9,0.8093]
[1734345902285,2.13953833,3938.8,3937.9,0.8093]
[1734345902480,2.53903,3938.5,3937.9,0.8093]
[1734345902775,2.53926,3938.2,3937.9,0.8093]
[1734345903072,0.55,3938.4,3937.9,0.8093]
[1734345903277,0.55,3938.4,3937.6,0.7532]
[1734345903278,2.53936,3938.0,3937.6,0.7532]
[1734345905165,2.53923,3938.2,3937.6,0.7532]
[1734345905683,0.55,3938.4,3937.0,2.69778027]
[1734345905879,3.33469,3938.1,3937.3,0.8165]
[1734345906083,0.55,3938.0,3937.0,3.22870044]
[1734345906254,2.53974,3937.5,3937.0,3.22870044]
[1734345906463,2.53974,3937.5,3936.5,0.28557983]
[1734345906464,2.53994,3937.1,3936.5,0.7528]
[1734345906643,0.55,3937.0,3936.5,0.7528]
[1734345906839,3.09001,3937.0,3936.5,0.7528]
[1734345907541,2.54021,3936.7,3936.5,0.7528]
[1734345907843,0.55,3937.2,3936.5,0.7528]
[1734345908062,0.55,3936.9,3936.5,0.7528]
[1734345908480,2.5402,3936.7,3936.5,0.7528]
[1734345908680,2.54022,3936.7,3936.5,0.7528]
[1734345910079,2.5403,3936.6,3936.2,0.8096]
[1734345910288,2.54029,3936.6,3936.2,0.8096]
[1734345910673,2.54034,3936.5,3936.2,0.8096]
[1734345911908,0.55,3936.6,3936.2,0.8096]
[1734345912269,2.54007,3936.9,3936.2,0.8096]
[1734345912465,1.04733518,3937.1,3936.2,0.8096]
[1734345912466,0.55,3937.1,3936.2,0.8096]
[1734345912669,2.5402,3936.7,3936.2,0.8096]
[1734345913627,0.55,3936.6,3935.8,0.7642]
[1734345913971,2.54039,3936.4,3935.8,0.7642]
[1734345914605,3.09027,3936.6,3935.8,0.7642]
[1734345916311,2.54019,3936.7,3935.8,0.7642]
[1734345916551,2.54037,3936.5,3935.8,0.7642]
[1734345917162,0.55,3936.5,3935.8,0.7642]
[1734345917365,0.55,3936.5,3935.3,2.41220044]
[1734345917525,0.55,3936.5,3935.4,0.7963]
[1734345917859,2.54067,3936.0,3935.4,0.7963]
[1734345918013,0.55,3936.5,3935.4,0.7963]
[1734345918361,2.54063,3936.1,3935.4,0.7963]
[1734345919016,2.54046,3936.3,3935.4,0.7963]
[1734345919440,2.54039,3936.4,3935.4,1.21879904]
[1734345919650,0.55,3936.5,3935.7,2.41220044]
[1734345919844,0.55,3936.8,3935.8,0.8022]
[1734345920017,2.54026,3936.6,3935.8,0.8022]
[1734345921120,0.55,3936.8,3935.8,0.8022]
[1734345921464,2.54047,3936.3,3935.8,0.8022]
[1734345922214,0.78626352,3936.8,3935.8,0.8022]
[1734345922418,2.54052,3936.2,3935.8,0.8022]
[1734345923315,0.55,3936.3,3935.8,0.8022]
[1734345923539,2.54047,3936.3,3935.8,0.8022]
[1734345923921,2.54052,3936.2,3935.8,0.8022]
[1734345924360,2.54068,3936.0,3935.4,0.7663]
[1734345925046,2.54087,3935.7,3935.4,0.7663]
[1734345925260,2.54093,3935.6,3935.4,0.7663]
[1734345925432,2.54077,3935.9,3935.4,0.7663]
[1734345925631,2.54081,3935.8,3935.4,0.7663]
[1734345925840,2.54084,3935.7,3935.4,0.7663]
[1734345926020,2.54071,3935.9,3935.4,0.7663]
[1734345926223,0.55,3935.9,3935.4,0.7663]
[1734345926621,2.5408,3935.8,3935.4,0.7663]
[1734345927051,2.54085,3935.7,3935.4,0.7663]
[1734345928167,0.55,3936.1,3935.4,0.7663]
[1734345928368,2.54094,3935.6,3935.4,0.7663]
[1734345933389,3.09064,3936.1,3935.4,0.7663]
[1734345933390,2.54077,3935.9,3935.4,0.7663]
[1734345933688,0.55,3936.1,3935.4,0.7663]
[1734345934140,2.54041,3936.4,3935.4,0.7663]